fUST/lending_fUST_20250222
["ID","MTS","AMOUNT","RATE_DAILY","PERIOD"]
[354093573,1740232234554,-527.64,0.00013698,2]
[354093574,1740232234564,-500.0,0.00013698,2]
[354093575,1740232234573,-500.0,0.00013698,2]
[354093576,1740232234582,-500.0,0.00013698,2]
[354093577,1740232234592,-500.0,0.00013698,2]
[354093578,1740232234601,-500.0,0.00013698,2]
[354093579,1740232234610,-500.0,0.00013698,2]
[354093580,1740232234619,-500.0,0.00013698,2]
[354093581,1740232234628,-500.0,0.00013698,2]
[354093582,1740232234638,-500.0,0.00013698,2]
[354093583,1740232234648,-909.0,0.00013698,2]
[354093584,1740232234657,-500.0,0.00013698,2]
[354093585,1740232234666,-500.0,0.00013698,2]
[354093586,1740232234676,-500.0,0.00013698,2]
[354093587,1740232234685,-1136.92,0.00013698,2]
[354093588,1740232234695,-500.0,0.00013698,2]
[354093589,1740232234704,-500.0,0.00013698,2]
[354093590,1740232234713,-500.0,0.00013698,2]
[354093591,1740232234722,-500.0,0.00013698,2]
[354093592,1740232234730,-500.0,0.00013698,2]
[354093593,1740232234739,-500.0,0.00013698,2]
[354093594,1740232234748,-580.63,0.00013698,2]
[354093595,1740232234757,-500.0,0.00013698,2]
[354093596,1740232234766,-500.0,0.00013698,2]
[354093597,1740232234775,-500.0,0.00013698,2]
[354093598,1740232234786,-2407.33,0.00013698,2]
[354093599,1740232234795,-500.0,0.00013698,2]
[354093600,1740232234806,-500.0,0.00013698,2]
[354093601,1740232234822,-500.0,0.00013698,2]
[354093602,1740232234831,-500.0,0.00013698,2]
[354093603,1740232234841,-500.0,0.00013698,2]
[354093604,1740232234851,-5330.32775735,0.00013698,2]
[354093605,1740232234866,-8587.68224265,0.00013698,2]
[354093606,1740232234875,-500.0,0.00013698,2]
[354093607,1740232234885,-500.0,0.00013698,2]
[354093608,1740232234895,-500.0,0.00013698,2]
[354093609,1740232234905,-180.38668,0.00013699,2]
[354093610,1740232234915,-765.35076904,0.00013763,2]
[354093611,1740232234924,-500.0,0.00013778,2]
[354093612,1740232234933,-500.0,0.00013778,2]
[354093613,1740232234942,-592.66,0.00013778,2]
[354093614,1740232234951,-500.0,0.00013778,2]
[354093615,1740232234960,-500.0,0.00013779,2]
[354093616,1740232234969,-354.88045053,0.00013779,2]
[354093617,1740232234982,-145.11954947,0.00013779,2]
[354093618,1740232234991,-531.51852421,0.00013779,2]
[354093619,1740232235000,-500.0,0.00013779,2]
[354093620,1740232235009,-507.22120274,0.00013779,2]
[354093621,1740232235018,-500.0,0.00013779,2]
[354093622,1740232235027,-500.0,0.00013779,2]
[354093623,1740232235036,-500.0,0.00013779,2]
[354093624,1740232235045,-439.39357626,0.00013779,2]
[354093625,1740232235055,-264.51517576,0.00013779,2]
[354093626,1740232235063,-500.0,0.00013779,2]
[354093627,1740232235073,-500.0,0.00013779,2]
[354093628,1740232235083,-500.0,0.00013779,2]
[354093629,1740232235092,-500.0,0.00013779,2]
[354093630,1740232235101,-500.0,0.0001378,2]
[354093631,1740232235110,-500.0,0.0001378,2]
[354093632,1740232235119,-500.0,0.0001378,2]
[354093633,1740232235129,-592.92,0.0001378,2]
[354093634,1740232235138,-329.96548478,0.0001378,2]
[354093661,1740232238625,-500.0,0.00013698,2]
[354093662,1740232238635,-500.0,0.00013698,2]
[354093663,1740232238644,-1461.71375509,0.00013698,2]
[354093671,1740232240972,-1245.04624491,0.00013698,2]
[354093672,1740232240982,-985.84,0.00013698,2]
[354093673,1740232240992,-500.0,0.00013698,2]
[354093674,1740232241001,-170.03451522,0.0001378,2]
[354093675,1740232241011,-500.0,0.0001378,2]
[354093676,1740232241020,-500.0,0.0001378,2]
[354093677,1740232241119,-500.0,0.0001378,2]
[354093678,1740232241134,-500.0,0.0001378,2]
[354093679,1740232241143,-500.0,0.0001378,2]
[354093680,1740232241153,-500.0,0.0001378,2]
[354093681,1740232241163,-500.0,0.0001378,2]
[354093682,1740232241173,-500.0,0.0001378,2]
[354093683,1740232241182,-500.0,0.0001378,2]
[354093684,1740232241192,-500.0,0.0001378,2]
[354093685,1740232241201,-500.0,0.0001378,2]
[354093686,1740232241211,-500.0,0.0001378,2]
[354093687,1740232241220,-500.0,0.0001378,2]
[354093688,1740232241230,-500.0,0.0001378,2]
[354093689,1740232241239,-229.01695678,0.0001378,2]
[354093690,1740232241249,-500.0,0.0001378,2]
[354093691,1740232241258,-500.0,0.0001378,2]
[354093692,1740232241267,-500.0,0.0001378,2]
[354093693,1740232241277,-451.81,0.0001378,2]
[354093694,1740232241286,-502.62332079,0.0001378,2]
[354093695,1740232241295,-500.0,0.0001378,2]
[354093696,1740232241305,-551.79256684,0.0001378,2]
[354093697,1740232241314,-500.0,0.0001378,2]
[354093698,1740232241323,-500.0,0.0001378,2]
[354093699,1740232241333,-500.0,0.0001378,2]
[354093700,1740232241342,-500.0,0.0001378,2]
[354093701,1740232241351,-500.0,0.0001378,2]
[354093702,1740232241360,-500.0,0.0001378,2]
[354093703,1740232241370,-500.0,0.0001378,2]
[354093704,1740232241379,-500.0,0.0001378,2]
[354093705,1740232241389,-262.19,0.0001378,2]
[354093706,1740232241398,-500.0,0.0001378,2]
[354093707,1740232241408,-500.0,0.0001378,2]
[354093708,1740232241417,-488.52033644,0.0001378,2]
[354093709,1740232241427,-500.0,0.0001378,2]
[354093710,1740232241436,-500.0,0.0001378,2]
[354093711,1740232241445,-500.0,0.0001378,2]
[354093712,1740232241456,-500.0,0.0001378,2]
[354093713,1740232241466,-500.0,0.0001378,2]
[354093714,1740232241475,-500.0,0.0001378,2]
[354093715,1740232241484,-500.0,0.0001378,2]
[354093716,1740232241495,-500.0,0.0001378,2]
[354093717,1740232241505,-500.0,0.0001378,2]
[354093718,1740232241513,-500.0,0.0001378,2]
[354093719,1740232241522,-500.0,0.0001378,2]
[354093720,1740232241533,-500.0,0.0001378,2]
[354093721,1740232241542,-500.0,0.0001378,2]
[354093722,1740232241551,-500.0,0.0001378,2]
[354093723,1740232241560,-500.0,0.0001378,2]
[354093724,1740232241570,-500.0,0.0001378,2]
[354093725,1740232241579,-500.0,0.0001378,2]
[354093726,1740232241588,-500.0,0.0001378,2]
[354093727,1740232241597,-500.0,0.0001378,2]
[354093728,1740232241607,-500.0,0.0001378,2]
[354093729,1740232241616,-500.0,0.0001378,2]
[354093730,1740232241624,-631.54,0.0001378,2]
[354093731,1740232241633,-1109.69,0.0001378,2]
[354093732,1740232241643,-500.0,0.0001378,2]
[354093733,1740232241652,-500.0,0.0001378,2]
[354093734,1740232241661,-500.0,0.0001378,2]
[354093735,1740232241670,-500.0,0.0001378,2]
[354093736,1740232241679,-500.0,0.0001378,2]
[354093737,1740232241689,-500.0,0.0001378,2]
[354093738,1740232241698,-500.0,0.0001378,2]
[354093739,1740232241707,-832.94,0.0001378,2]
[354093740,1740232241716,-500.0,0.0001378,2]
[354093741,1740232241724,-1662.36,0.0001378,2]
[354093742,1740232241734,-500.0,0.0001378,2]
[354093743,1740232241743,-500.0,0.0001378,2]
[354093744,1740232241752,-152.71,0.0001378,2]
[354093745,1740232241761,-5225.1,0.0001378,2]
[354093746,1740232241770,-925.53,0.0001378,2]
[354093747,1740232241779,-500.0,0.0001378,2]
[354093748,1740232241788,-500.0,0.0001378,2]
[354093749,1740232241797,-500.0,0.0001378,2]
[354093750,1740232241807,-500.0,0.0001378,2]
[354093751,1740232241815,-500.0,0.0001378,2]
[354093752,1740232241824,-1100.21,0.0001378,2]
[354093753,1740232241834,-500.0,0.0001378,2]
[354093754,1740232241843,-500.0,0.0001378,2]
[354093755,1740232241852,-500.0,0.0001378,2]
[354093756,1740232241861,-500.0,0.0001378,2]
[354093757,1740232241870,-500.0,0.0001378,2]
[354093758,1740232241879,-500.0,0.0001378,2]
[354093759,1740232241889,-500.0,0.0001378,2]
[354093760,1740232241898,-909.0,0.0001378,2]
[354093761,1740232241907,-405.14,0.0001378,2]
[354093762,1740232241916,-1136.92,0.0001378,2]
[354093763,1740232241926,-500.0,0.0001378,2]
[354093764,1740232241935,-2407.33,0.0001378,2]
[354093765,1740232241944,-500.0,0.0001378,2]
[354093766,1740232241953,-151.70072566,0.0001378,2]
[354093767,1740232241963,-500.0,0.0001378,2]
[354093768,1740232241972,-500.0,0.0001378,2]
[354093769,1740232241981,-13918.01,0.0001378,2]
[354093770,1740232241990,-276.9602839,0.0001378,2]
[354093771,1740232241999,-500.0,0.0001378,2]
[354093772,1740232242008,-500.0,0.0001378,2]
[354093773,1740232242018,-296.13908018,0.0001378,2]
[354093774,1740232242027,-2706.76,0.0001378,2]
[354093775,1740232242036,-985.84,0.0001378,2]
[354093776,1740232242045,-1000.0,0.000138,2]
[354093777,1740232242055,-1806.27860784,0.000138,2]
[354093778,1740232242064,-500.0,0.00013862,2]
[354093779,1740232242073,-152.15,0.00013862,2]
[354093780,1740232242083,-500.0,0.00013863,2]
[354093781,1740232242092,-500.0,0.00013863,2]
[354093782,1740232242101,-167.37,0.00013863,2]
[354093783,1740232242110,-500.0,0.00013863,2]
[354093784,1740232242120,-500.0,0.00013863,2]
[354093785,1740232242129,-500.0,0.00013863,2]
[354093786,1740232242138,-500.0,0.00013863,2]
[354093787,1740232242147,-500.0,0.00013863,2]
[354093788,1740232242156,-500.0,0.00013863,2]
[354093789,1740232242165,-500.0,0.00013863,2]
[354093790,1740232242174,-563.28,0.00013863,2]
[354093791,1740232242184,-500.0,0.00013863,2]
[354093792,1740232242193,-500.0,0.00013863,2]
[354093793,1740232242203,-500.0,0.00013863,2]
[354093794,1740232242212,-1109.69,0.00013863,2]
[354093795,1740232242221,-500.0,0.00013863,2]
[354093796,1740232242231,-500.0,0.00013863,2]
[354093797,1740232242240,-500.0,0.00013863,2]
[354093798,1740232242249,-500.0,0.00013863,2]
[354093799,1740232242258,-500.0,0.00013863,2]
[354093800,1740232242267,-832.94,0.00013863,2]
[354093801,1740232242276,-500.0,0.00013863,2]
[354093802,1740232242285,-1662.36,0.00013863,2]
[354093803,1740232242294,-500.0,0.00013863,2]
[354093804,1740232242303,-500.0,0.00013863,2]
[354093805,1740232242313,-5225.1,0.00013863,2]
[354093806,1740232242322,-925.53,0.00013863,2]
[354093807,1740232242330,-500.0,0.00013863,2]
[354093808,1740232242339,-283.98,0.00013863,2]
[354093809,1740232242348,-500.0,0.00013863,2]
[354093810,1740232242359,-500.0,0.00013863,2]
[354093811,1740232242369,-524.54,0.00013863,2]
[354093812,1740232242378,-1100.21,0.00013863,2]
[354093813,1740232242387,-500.0,0.00013863,2]
[354093814,1740232242396,-500.0,0.00013863,2]
[354093815,1740232242406,-500.0,0.00013863,2]
[354093816,1740232242414,-500.0,0.00013863,2]
[354093817,1740232242423,-500.0,0.00013863,2]
[354093818,1740232242432,-909.0,0.00013863,2]
[354093819,1740232242441,-1136.92,0.00013863,2]
[354093820,1740232242452,-2407.33,0.00013863,2]
[354093821,1740232242464,-500.0,0.00013863,2]
[354093822,1740232242473,-500.0,0.00013863,2]
[354093823,1740232242483,-13918.01,0.00013863,2]
[354093824,1740232242494,-500.0,0.00013863,2]
[354093825,1740232242504,-2706.76,0.00013863,2]
[354093826,1740232242513,-985.84,0.00013863,2]
[354093827,1740232242522,-2000.0,0.000139,2]
[354093828,1740232242532,-268.23219675,0.00013919,2]
[354093829,1740232242541,-554.96,0.00013945,2]
[354093830,1740232242550,-500.0,0.00013945,2]
[354093831,1740232242558,-353.00684492,0.00013945,2]
[354093832,1740232242567,-500.0,0.00013945,2]
[354093833,1740232242576,-500.0,0.00013945,2]
[354093834,1740232242585,-500.0,0.00013945,2]
[354093835,1740232242594,-500.0,0.00013945,2]
[354093836,1740232242603,-361.91775934,0.00013945,2]
[354093837,1740232242612,-509.80972389,0.00013945,2]
[354093838,1740232242621,-1109.69,0.00013945,2]
[354093839,1740232242630,-500.0,0.00013945,2]
[354093840,1740232242639,-500.0,0.00013945,2]
[354093841,1740232242648,-272.64,0.00013945,2]
[354093842,1740232242657,-500.0,0.00013945,2]
[354093843,1740232242666,-832.94,0.00013945,2]
[354093844,1740232242674,-500.0,0.00013945,2]
[354093845,1740232242684,-1662.36,0.00013945,2]
[354093846,1740232242693,-5225.1,0.00013945,2]
[354093847,1740232242702,-925.53,0.00013945,2]
[354093848,1740232242711,-500.0,0.00013945,2]
[354093849,1740232242720,-500.0,0.00013945,2]
[354093850,1740232242729,-500.0,0.00013945,2]
[354093851,1740232242738,-1100.21,0.00013945,2]
[354093852,1740232242747,-500.0,0.00013945,2]
[354093853,1740232242756,-500.0,0.00013945,2]
[354093854,1740232242765,-500.0,0.00013945,2]
[354093855,1740232242774,-500.0,0.00013945,2]
[354093856,1740232242783,-909.0,0.00013945,2]
[354093857,1740232242792,-1136.92,0.00013945,2]
[354093858,1740232242801,-2407.33,0.00013945,2]
[354093859,1740232242810,-241.09,0.00013945,2]
[354093860,1740232242819,-500.0,0.00013945,2]
[354093861,1740232242829,-13918.01,0.00013945,2]
[354093862,1740232242837,-500.0,0.00013945,2]
[354093863,1740232242846,-2706.76,0.00013945,2]
[354093864,1740232242855,-985.84,0.00013945,2]
[354093865,1740232242864,-500.0,0.00013963,2]
[354093866,1740232242873,-387.20735709,0.00013963,2]
[354093867,1740232242882,-550.0,0.00013964,2]
[354093868,1740232242891,-500.0,0.00013964,2]
[354093869,1740232242901,-151.09484542,0.00013964,2]
[354093870,1740232242910,-500.0,0.00013964,2]
[354093871,1740232242919,-500.0,0.00013971,2]
[354093872,1740232242928,-3849.52,0.00014,2]
[354093873,1740232242937,-2000.0,0.00014,2]
[354093874,1740232243023,-765.35076901,0.0001402,2]
[354093875,1740232243032,-443.76,0.00014027,2]
[354093876,1740232243042,-500.0,0.00014027,2]
[354093877,1740232243051,-500.0,0.00014027,2]
[354093878,1740232243060,-500.0,0.00014027,2]
[354093879,1740232243069,-500.0,0.00014027,2]
[354093880,1740232243080,-1109.69,0.00014027,2]
[354093881,1740232243090,-500.0,0.00014027,2]
[354093882,1740232243099,-500.0,0.00014027,2]
[354093883,1740232243108,-500.0,0.00014027,2]
[354093884,1740232243117,-832.94,0.00014027,2]
[354093886,1740232243126,-500.0,0.00014027,2]
[354093888,1740232243136,-1662.36,0.00014027,2]
[354093890,1740232243145,-5225.1,0.00014027,2]
[354093891,1740232243154,-925.53,0.00014027,2]
[354093892,1740232243163,-500.0,0.00014027,2]
[354093894,1740232243173,-500.0,0.00014027,2]
[354093895,1740232243182,-329.26,0.00014027,2]
[354093896,1740232243191,-1100.21,0.00014027,2]
[354093897,1740232243201,-500.0,0.00014027,2]
[354093898,1740232243210,-500.0,0.00014027,2]
[354093899,1740232243219,-468.69951467,0.00014027,2]
[354093900,1740232243229,-500.0,0.00014027,2]
[354093902,1740232243238,-909.0,0.00014027,2]
[354093904,1740232243247,-1136.92,0.00014027,2]
[354093906,1740232243257,-2407.33,0.00014027,2]
[354093908,1740232243266,-500.0,0.00014027,2]
[354093910,1740232243275,-13918.01,0.00014027,2]
[354093912,1740232243283,-500.0,0.00014027,2]
[354093915,1740232243292,-2706.76,0.00014027,2]
[354093918,1740232243302,-985.84,0.00014027,2]
[354093919,1740232243310,-500.0,0.00014109,2]
[354093922,1740232243319,-500.0,0.00014109,2]
[354093925,1740232243328,-500.0,0.00014109,2]
[354093927,1740232243337,-207.16,0.00014109,2]
[354093929,1740232243346,-1109.69,0.00014109,2]
[354093930,1740232243355,-500.0,0.00014109,2]
[354093931,1740232243365,-500.0,0.00014109,2]
[354093932,1740232243374,-500.0,0.00014109,2]
[354093933,1740232243383,-832.94,0.00014109,2]
[354093935,1740232243393,-500.0,0.00014109,2]
[354093936,1740232243403,-1662.36,0.00014109,2]
[354093937,1740232243413,-5225.1,0.00014109,2]
[354093938,1740232243422,-925.53,0.00014109,2]
[354093939,1740232243431,-500.0,0.00014109,2]
[354093940,1740232243442,-500.0,0.00014109,2]
[354093941,1740232243453,-1100.21,0.00014109,2]
[354093942,1740232243463,-500.0,0.00014109,2]
[354093943,1740232243472,-500.0,0.00014109,2]
[354093944,1740232243481,-500.0,0.00014109,2]
[354093945,1740232243490,-909.0,0.00014109,2]
[354093946,1740232243501,-1136.92,0.00014109,2]
[354093947,1740232243510,-2407.33,0.00014109,2]
[354093948,1740232243519,-500.0,0.00014109,2]
[354093949,1740232243529,-13918.01,0.00014109,2]
[354093950,1740232243539,-500.0,0.00014109,2]
[354093951,1740232243549,-2706.76,0.00014109,2]
[354093952,1740232243559,-985.84,0.00014109,2]
[354093953,1740232243568,-227.84420737,0.00014125,2]
[354093954,1740232243577,-500.0,0.00014191,2]
[354093955,1740232243586,-500.0,0.00014191,2]
[354093956,1740232243595,-500.0,0.00014191,2]
[354093957,1740232243604,-1109.69,0.00014191,2]
[354093958,1740232243614,-500.0,0.00014191,2]
[354093959,1740232243623,-500.0,0.00014191,2]
[354093960,1740232243632,-500.0,0.00014191,2]
[354093961,1740232243642,-832.94,0.00014191,2]
[354093962,1740232243651,-500.0,0.00014191,2]
[354093963,1740232243660,-1662.36,0.00014191,2]
[354093964,1740232243669,-5225.1,0.00014191,2]
[354093966,1740232243678,-925.53,0.00014191,2]
[354093967,1740232243687,-500.0,0.00014191,2]
[354093968,1740232243696,-500.0,0.00014191,2]
[354093969,1740232243705,-1100.21,0.00014191,2]
[354093970,1740232243714,-500.0,0.00014191,2]
[354093971,1740232243723,-500.0,0.00014191,2]
[354093972,1740232243732,-500.0,0.00014191,2]
[354093973,1740232243741,-909.0,0.00014191,2]
[354093974,1740232243750,-1136.92,0.00014191,2]
[354093975,1740232243759,-2407.33,0.00014191,2]
[354093976,1740232243768,-500.0,0.00014191,2]
[354093977,1740232243777,-13918.01,0.00014191,2]
[354093978,1740232243786,-500.0,0.00014191,2]
[354093979,1740232243795,-985.84,0.00014191,2]
[354093980,1740232243804,-2706.76,0.00014191,2]
[354093981,1740232243813,-1008.1775408,0.00014247,2]
[354093982,1740232243822,-500.0,0.00014273,2]
[354093983,1740232243831,-500.0,0.00014273,2]
[354093984,1740232243840,-500.0,0.00014273,2]
[354093985,1740232243850,-1109.69,0.00014273,2]
[354093986,1740232243859,-500.0,0.00014273,2]
[354093987,1740232243868,-500.0,0.00014273,2]
[354093988,1740232243877,-500.0,0.00014273,2]
[354093989,1740232243886,-832.94,0.00014273,2]
[354093990,1740232243895,-500.0,0.00014273,2]
[354093991,1740232243906,-1662.36,0.00014273,2]
[354093992,1740232243915,-5225.1,0.00014273,2]
[354093993,1740232243924,-925.53,0.00014273,2]
[354093994,1740232243933,-500.0,0.00014273,2]
[354093995,1740232243942,-500.0,0.00014273,2]
[354093996,1740232243951,-1100.21,0.00014273,2]
[354093997,1740232243961,-500.0,0.00014273,2]
[354093998,1740232243970,-500.0,0.00014273,2]
[354093999,1740232243979,-500.0,0.00014273,2]
[354094000,1740232243988,-909.0,0.00014273,2]
[354094001,1740232243998,-1136.92,0.00014273,2]
[354094002,1740232244008,-2407.33,0.00014273,2]
[354094003,1740232244018,-500.0,0.00014273,2]
[354094004,1740232244027,-13918.01,0.00014273,2]
[354094005,1740232244036,-500.0,0.00014273,2]
[354094006,1740232244045,-985.84,0.00014273,2]
[354094007,1740232244054,-2706.76,0.00014273,2]
[354094008,1740232244064,-765.35076901,0.00014278,2]
[354094009,1740232244073,-500.0,0.00014356,2]
[354094010,1740232244082,-500.0,0.00014356,2]
[354094011,1740232244091,-500.0,0.00014356,2]
[354094012,1740232244100,-1109.69,0.00014356,2]
[354094013,1740232244110,-500.0,0.00014356,2]
[354094014,1740232244119,-500.0,0.00014356,2]
[354094015,1740232244128,-500.0,0.00014356,2]
[354094016,1740232244137,-832.94,0.00014356,2]
[354094017,1740232244146,-500.0,0.00014356,2]
[354094018,1740232244157,-1662.36,0.00014356,2]
[354094019,1740232244166,-5225.1,0.00014356,2]
[354094020,1740232244176,-925.53,0.00014356,2]
[354094021,1740232244185,-500.0,0.00014356,2]
[354094022,1740232244195,-500.0,0.00014356,2]
[354094023,1740232244204,-1100.21,0.00014356,2]
[354094024,1740232244214,-500.0,0.00014356,2]
[354094025,1740232244223,-500.0,0.00014356,2]
[354094026,1740232244232,-500.0,0.00014356,2]
[354094027,1740232244241,-909.0,0.00014356,2]
[354094028,1740232244251,-1136.92,0.00014356,2]
[354094029,1740232244260,-2407.33,0.00014356,2]
[354094030,1740232244269,-500.0,0.00014356,2]
[354094031,1740232244278,-13918.01,0.00014356,2]
[354094032,1740232244287,-500.0,0.00014356,2]
[354094033,1740232244297,-2706.76,0.00014356,2]
[354094034,1740232244306,-985.84,0.00014356,2]
[354094035,1740232244316,-412.97,0.00014438,2]
[354094036,1740232244325,-500.0,0.00014438,2]
[354094037,1740232244335,-500.0,0.00014438,2]
[354094038,1740232244344,-1109.69,0.00014438,2]
[354094039,1740232244353,-500.0,0.00014438,2]
[354094040,1740232244363,-500.0,0.00014438,2]
[354094041,1740232244372,-500.0,0.00014438,2]
[354094042,1740232244381,-832.94,0.00014438,2]
[354094043,1740232244390,-500.0,0.00014438,2]
[354094044,1740232244400,-1662.36,0.00014438,2]
[354094045,1740232244409,-5225.1,0.00014438,2]
[354094046,1740232244418,-925.53,0.00014438,2]
[354094047,1740232244427,-500.0,0.00014438,2]
[354094048,1740232244436,-500.0,0.00014438,2]
[354094049,1740232244445,-1100.21,0.00014438,2]
[354094050,1740232244457,-500.0,0.00014438,2]
[354094051,1740232244466,-500.0,0.00014438,2]
[354094052,1740232244475,-500.0,0.00014438,2]
[354094053,1740232244485,-909.0,0.00014438,2]
[354094054,1740232244495,-1136.92,0.00014438,2]
[354094055,1740232244504,-2407.33,0.00014438,2]
[354094056,1740232244513,-500.0,0.00014438,2]
[354094057,1740232244522,-13918.01,0.00014438,2]
[354094058,1740232244532,-547.57,0.00014438,2]
[354094059,1740232244541,-985.84,0.00014438,2]
[354094060,1740232244550,-1000.0,0.0001451,2]
[354094061,1740232244559,-599.67744206,0.00014512,2]
[354094062,1740232244568,-1000.0,0.00014512,2]
[354094063,1740232244577,-213.42148763,0.0001452,2]
[354094064,1740232244586,-170.92,0.0001452,2]
[354094065,1740232244595,-1109.69,0.0001452,2]
[354094066,1740232244604,-500.0,0.0001452,2]
[354094067,1740232244613,-500.0,0.0001452,2]
[354094068,1740232244622,-500.0,0.0001452,2]
[354094069,1740232244631,-832.94,0.0001452,2]
[354094070,1740232244639,-185.89,0.0001452,2]
[354094071,1740232244648,-1662.36,0.0001452,2]
[354094072,1740232244658,-5225.1,0.0001452,2]
[354094073,1740232244667,-925.53,0.0001452,2]
[354094074,1740232244676,-500.0,0.0001452,2]
[354094075,1740232244685,-500.0,0.0001452,2]
[354094076,1740232244694,-1100.21,0.0001452,2]
[354094077,1740232244768,-500.0,0.0001452,2]
[354094078,1740232244786,-500.0,0.0001452,2]
[354094079,1740232244796,-500.0,0.0001452,2]
[354094080,1740232244806,-909.0,0.0001452,2]
[354094081,1740232244815,-1136.92,0.0001452,2]
[354094082,1740232244824,-2407.33,0.0001452,2]
[354094083,1740232244833,-500.0,0.0001452,2]
[354094084,1740232244841,-13918.01,0.0001452,2]
[354094085,1740232244853,-985.84,0.0001452,2]
[354094086,1740232244862,-765.35076901,0.00014535,2]
[354094087,1740232244871,-1109.69,0.00014602,2]
[354094088,1740232244880,-500.0,0.00014602,2]
[354094089,1740232244889,-500.0,0.00014602,2]
[354094090,1740232244898,-500.0,0.00014602,2]
[354094091,1740232244908,-832.94,0.00014602,2]
[354094092,1740232244917,-1662.36,0.00014602,2]
[354094093,1740232244927,-5225.1,0.00014602,2]
[354094094,1740232244936,-925.53,0.00014602,2]
[354094095,1740232244946,-500.0,0.00014602,2]
[354094096,1740232244956,-500.0,0.00014602,2]
[354094097,1740232244966,-1100.21,0.00014602,2]
[354094098,1740232244976,-500.0,0.00014602,2]
[354094099,1740232244989,-418.87733345,0.00014602,2]
[354094100,1740232245001,-500.0,0.00014602,2]
[354094101,1740232245011,-909.0,0.00014602,2]
[354094102,1740232245020,-1136.92,0.00014602,2]
[354094103,1740232245029,-2407.33,0.00014602,2]
[354094104,1740232245039,-500.0,0.00014602,2]
[354094105,1740232245048,-13918.01,0.00014602,2]
[354094106,1740232245058,-985.84,0.00014602,2]
[354094107,1740232245067,-500.0,0.00014683,2]
[354094108,1740232245077,-633.67764684,0.00014683,2]
[354094109,1740232245087,-1109.69,0.00014684,2]
[354094110,1740232245097,-482.71,0.00014684,2]
[354094111,1740232245106,-247.71,0.00014684,2]
[354094113,1740232245115,-500.0,0.00014684,2]
[354094114,1740232245124,-832.94,0.00014684,2]
[354094115,1740232245134,-1662.36,0.00014684,2]
[354094116,1740232245143,-5225.1,0.00014684,2]
[354094118,1740232245153,-925.53,0.00014684,2]
[354094119,1740232245162,-500.0,0.00014684,2]
[354094121,1740232245172,-500.0,0.00014684,2]
[354094122,1740232245181,-1100.21,0.00014684,2]
[354094123,1740232245191,-500.0,0.00014684,2]
[354094124,1740232245200,-500.0,0.00014684,2]
[354094125,1740232245210,-909.0,0.00014684,2]
[354094126,1740232245220,-1136.92,0.00014684,2]
[354094127,1740232245229,-2407.33,0.00014684,2]
[354094128,1740232245239,-500.0,0.00014684,2]
[354094129,1740232245249,-13918.01,0.00014684,2]
[354094130,1740232245257,-12330.67627153,0.00014696,2]